bitfinex/quotes_BTCUSD_20251217
["timestamp","ask_amount","ask_price","bid_price","bid_amount"]
[1765977884976,1.78634234,87130.0,87129.0,0.21158328]
[1765977885308,1.78634234,87130.0,87129.0,0.44112797]
[1765977887148,1.78634234,87130.0,87129.0,0.49114636]
[1765977897592,1.78634234,87130.0,87129.0,0.47294636]
[1765977897797,1.78634234,87130.0,87129.0,0.49114636]
[1765977898450,1.78634234,87130.0,87129.0,0.47294636]
[1765977898662,1.78634234,87130.0,87129.0,0.49114636]
[1765977899308,1.78634234,87130.0,87129.0,0.24340167]
[1765977899519,1.78634234,87130.0,87129.0,0.21158328]
[1765977900421,1.78634234,87130.0,87129.0,0.20997041]
[1765977901275,1.78634234,87130.0,87129.0,0.20397041]
[1765977901492,1.78634234,87130.0,87129.0,0.20597041]
[1765977901703,1.78634234,87130.0,87129.0,0.20797041]
[1765977901906,1.78634234,87130.0,87129.0,0.20597041]
[1765977902328,1.78634234,87130.0,87129.0,0.20797041]
[1765977902972,1.78634234,87130.0,87129.0,0.20597041]
[1765977903390,1.78634234,87130.0,87129.0,0.20797041]
[1765977904700,1.78634234,87130.0,87129.0,0.09293652]
[1765977905582,1.78634234,87130.0,87129.0,0.09093652]
[1765977905939,1.78634234,87130.0,87129.0,0.08993652]
[1765977906104,1.78634234,87130.0,87129.0,0.14726679]
[1765977906309,1.78634234,87130.0,87129.0,0.09193652]
[1765977907775,1.78634234,87130.0,87129.0,0.20697041]
[1765977909126,1.78634234,87130.0,87129.0,0.09193652]
[1765977909321,1.78634234,87130.0,87129.0,0.20697041]
[1765977909559,1.78634234,87130.0,87129.0,0.09193652]
[1765977909761,1.78634234,87130.0,87129.0,0.20697041]
[1765977910279,1.78634234,87130.0,87129.0,0.09193652]
[1765977910631,1.78634234,87130.0,87129.0,0.20697041]
[1765977911026,1.78634234,87130.0,87129.0,0.09193652]
[1765977911621,1.78634234,87130.0,87129.0,0.20697041]
[1765977912242,1.78634234,87130.0,87129.0,0.09193652]
[1765977912445,1.78634234,87130.0,87129.0,0.32148121]
[1765977912626,1.78634234,87130.0,87129.0,0.4365151]
[1765977912838,1.78634234,87130.0,87129.0,0.43812797]
[1765977913866,1.78634234,87130.0,87129.0,0.48814636]
[1765977915558,1.78634234,87130.0,87129.0,0.48514636]
[1765977915926,1.78634234,87130.0,87129.0,0.48914636]
[1765977923871,1.78634234,87130.0,87129.0,0.48714636]
[1765977924332,1.78634234,87130.0,87129.0,0.48914636]
[1765977924826,1.78634234,87130.0,87129.0,0.47494636]
[1765977924976,1.78634234,87130.0,87129.0,0.49314636]
[1765977925566,1.78634234,87130.0,87129.0,0.48914636]
[1765977926146,1.78634234,87130.0,87129.0,0.48814636]
[1765977926779,1.78634234,87130.0,87129.0,0.49114636]
[1765977927295,0.7272983,87130.0,87129.0,2.72946636]
[1765977927435,0.47340758,87130.0,87129.0,2.76395405]
[1765977927645,0.18348175,87130.0,87129.0,2.79307219]
[1765977927859,0.03883956,87130.0,87129.0,2.79307219]
[1765977928061,0.0004,87134.0,87133.0,2.70498644]
[1765977928262,0.0004,87134.0,87133.0,2.73583931]
[1765977928440,0.0004,87140.0,87139.0,2.73421063]
[1765977928638,0.00044325,87140.0,87139.0,2.7540235]
[1765977929547,0.01573,87196.0,87163.0,0.45051743]
[1765977929771,0.01573,87196.0,87163.0,0.47048682]
[1765977930546,0.0179948,87191.0,87163.0,0.47048682]
[1765977931708,0.0179948,87191.0,87163.0,0.47348682]
[1765977933291,0.0179948,87191.0,87163.0,0.47648682]
[1765977935159,0.00102926,87164.0,87163.0,0.47648682]
[1765977936197,0.00102926,87164.0,87163.0,0.36145293]
[1765977936408,0.00102926,87164.0,87163.0,0.47648682]
[1765977937147,0.00102926,87164.0,87163.0,0.47348682]
[1765977937826,0.00102926,87164.0,87163.0,0.47048682]
[1765977938280,0.00102926,87164.0,87163.0,0.47248682]
[1765977938691,0.00102926,87164.0,87163.0,0.47448682]
[1765977938895,0.00102926,87164.0,87163.0,0.47248682]
[1765977939103,0.00102926,87164.0,87163.0,0.47048682]
[1765977939312,0.00102926,87164.0,87163.0,0.47348682]
[1765977939516,0.00102926,87164.0,87163.0,0.47648682]
[1765977940863,0.0004,87195.0,87170.0,0.03293]
[1765977941231,0.0004,87195.0,87184.0,0.43910377]
[1765977941434,0.00050818,87185.0,87184.0,0.44071664]
[1765977941674,0.00050818,87185.0,87184.0,0.49073503]
[1765977942516,0.00050818,87185.0,87184.0,0.49273503]
[1765977943035,0.00050818,87185.0,87184.0,0.49373503]
[1765977946610,0.00116866,87185.0,87184.0,0.49373503]
[1765977949253,0.00116866,87185.0,87184.0,0.37870114]
[1765977949469,0.00116866,87185.0,87184.0,0.51209155]
[1765977950858,0.00116866,87185.0,87184.0,0.46207316]
[1765977951079,0.00116866,87185.0,87184.0,0.23267328]
[1765977951516,0.00116866,87185.0,87184.0,0.23167328]
[1765977951742,0.00116866,87185.0,87184.0,0.06535652]
[1765977951961,0.00116866,87185.0,87184.0,0.03242652]
[1765977952570,0.09450542,87193.0,87184.0,0.03342652]
[1765977952727,0.0003767,87193.0,87184.0,0.03342652]
[1765977953934,0.0003767,87193.0,87184.0,0.03242652]
[1765977954135,0.0003767,87193.0,87184.0,0.03342652]
[1765977954586,0.0003767,87193.0,87184.0,0.03242652]
[1765977954744,0.0457067,87193.0,87184.0,0.03242652]
[1765977955172,0.0467067,87193.0,87184.0,0.03242652]
[1765977955905,0.0013767,87193.0,87192.0,0.19358389]
[1765977957514,0.0013767,87193.0,87192.0,0.11503389]
[1765977957915,0.0003767,87193.0,87192.0,0.19519676]
[1765977958282,0.0013767,87193.0,87192.0,0.19519676]
[1765977958730,2.0,87208.0,87200.0,0.11503389]
[1765977958932,2.2907,87208.0,87207.0,0.01835652]
[1765977959348,2.0,87211.0,87207.0,0.05042652]
[1765977959503,2.0,87215.0,87211.0,0.07089]
[1765977959702,2.0,87214.0,87211.0,0.07089]
[1765977959919,2.0,87214.0,87211.0,0.02141]
[1765977962055,0.03859,87208.0,87207.0,0.01835652]
[1765977962254,2.0,87214.0,87207.0,0.05042652]
[1765977962457,2.0,87214.0,87213.0,0.07855]
[1765977962662,2.0,87214.0,87213.0,0.03207]
[1765977962949,2.00291169,87214.0,87213.0,0.03207]
[1765977963351,2.00291169,87214.0,87210.0,0.11503389]
[1765977963548,2.0,87213.0,87210.0,0.11503389]
[1765977964053,2.0,87213.0,87207.0,0.01835652]
[1765977964279,2.0,87213.0,87211.0,0.11503389]
[1765977964625,2.002,87214.0,87211.0,0.11503389]
[1765977964778,2.0,87213.0,87211.0,0.11503389]
[1765977964981,2.0,87213.0,87207.0,0.01835652]
[1765977965358,2.0,87214.0,87207.0,0.01835652]
[1765977965563,2.04827,87208.0,87207.0,0.01835652]
[1765977965985,0.04838,87203.0,87188.0,0.02598]
[1765977966339,2.37274,87203.0,87202.0,0.01835652]
[1765977967639,2.32436,87203.0,87188.0,0.02598]
[1765977967866,2.0,87201.0,87188.0,0.02598]
[1765977968073,2.08204,87201.0,87200.0,0.01835652]
[1765977971942,2.37274,87201.0,87200.0,0.01835652]
[1765977972263,2.37324307,87201.0,87200.0,0.01835652]
[1765977972465,0.32486307,87201.0,87200.0,0.01835652]
[1765977972687,0.29120307,87201.0,87200.0,0.01835652]
[1765977972981,0.29120307,87201.0,87188.0,0.02598]
[1765977972982,0.36157,87200.0,87188.0,0.02598]
[1765977973133,2.0,87197.0,87188.0,0.02598]
[1765977973329,0.00025156,87193.0,87188.0,0.02598]
[1765977974032,0.00025156,87193.0,87189.0,0.05267]
[1765977974632,0.00025156,87193.0,87179.0,0.05267]
[1765977974633,2.0,87192.0,87179.0,0.05267]
[1765977974835,0.2907,87189.0,87179.0,0.05267]
[1765977975035,0.2907,87189.0,87188.0,0.085]
[1765977975468,0.2907,87189.0,87188.0,0.03233]
[1765977975886,0.2907,87191.0,87182.0,0.05267]
[1765977976065,0.2907,87189.0,87185.0,0.05267]
[1765977976926,0.2907,87189.0,87178.0,0.05267]
[1765977977142,2.0,87192.0,87178.0,0.05267]
[1765977977349,0.00025156,87193.0,87184.0,0.01835652]
[1765977977350,0.2907,87189.0,87184.0,0.01835652]
[1765977977544,0.2907,87187.0,87184.0,0.01835652]
[1765977977948,0.32436,87185.0,87184.0,0.01835652]
[1765977978086,2.0,87184.0,87174.0,0.02598]
[1765977978291,2.0,87184.0,87181.0,0.01835652]
[1765977978292,2.38678,87182.0,87181.0,0.01835652]
[1765977978727,2.38678,87182.0,87181.0,0.01873322]
[1765977979628,2.38778,87182.0,87181.0,0.01873322]
[1765977983427,2.16708203,87182.0,87181.0,0.01873322]
[1765977983631,2.35064,87182.0,87181.0,0.01873322]
[1765977985158,2.35064,87182.0,87181.0,3.22e-06]
[1765977985765,2.46556016,87182.0,87181.0,3.22e-06]
[1765977986000,2.35064,87182.0,87181.0,3.22e-06]
[1765977986581,2.30226,87182.0,87181.0,3.22e-06]
[1765977987175,2.31804,87182.0,87181.0,3.22e-06]
[1765977988593,2.31804,87182.0,87163.0,0.01835652]
[1765977988594,0.2907,87181.0,87178.0,0.05267]
[1765977988799,0.2907,87181.0,87180.0,0.01835652]
[1765977989959,2.0,87186.0,87180.0,0.01835652]
[1765977990407,0.001,87181.0,87180.0,0.01835652]
[1765977991479,0.03466,87181.0,87180.0,0.01835652]
[1765977991693,0.0827,87181.0,87165.0,0.02598]
[1765977991912,0.04783,87175.0,87165.0,0.00010818]
[1765977992116,0.2907,87171.0,87165.0,0.00010818]
[1765977992648,0.02598,87170.0,87165.0,0.00010818]
[1765977993610,0.02598,87170.0,87166.0,0.02598]
[1765977993799,0.02598,87170.0,87169.0,0.085]
[1765977994009,0.02598,87170.0,87168.0,0.11503389]
[1765977994210,0.02598,87170.0,87166.0,0.02598]
[1765977994429,0.02598,87170.0,87166.0,0.08331027]
[1765977995094,0.02598,87170.0,87167.0,0.05733027]
[1765977995314,0.02598,87170.0,87169.0,0.08438]
[1765977995613,0.02598,87170.0,87169.0,0.08599287]
[1765977995798,0.02598,87170.0,87169.0,0.00161287]
[1765977996601,0.02598,87170.0,87169.0,0.00261287]
[1765977998407,0.02598,87170.0,87169.0,0.00361287]
[1765977999854,0.02598,87170.0,87169.0,0.00261287]
[1765978000054,0.02598,87170.0,87169.0,0.00161287]
[1765978000575,0.02598,87170.0,87169.0,0.08599287]
[1765978002716,0.02598,87170.0,87169.0,0.3727625]
[1765978002871,0.02598,87170.0,87169.0,0.31543223]
[1765978003072,0.2907,87189.0,87176.0,0.0503]
[1765978003073,2.0,87188.0,87176.0,0.0503]
[1765978003343,2.2907,87187.0,87186.0,0.01835652]
[1765978004435,2.3251907,87187.0,87186.0,0.01835652]
[1765978004636,2.3617107,87187.0,87186.0,0.01835652]
[1765978005249,2.3251907,87187.0,87186.0,0.01835652]
[1765978005383,2.3261907,87187.0,87186.0,0.01835652]
[1765978005806,2.3627107,87187.0,87186.0,0.01835652]
[1765978006262,2.4086407,87187.0,87186.0,0.01835652]
[1765978006480,0.01456,87183.0,87169.0,0.00161287]
[1765978006701,2.37195,87182.0,87181.0,0.01835652]
[1765978007015,2.2907,87182.0,87181.0,0.01835652]
[1765978007225,2.31668,87182.0,87181.0,0.01835652]
[1765978012660,2.35049,87182.0,87181.0,0.01835652]
[1765978012802,2.39401,87182.0,87181.0,0.01835652]
[1765978013951,2.35049,87182.0,87181.0,0.01835652]
[1765978014313,2.39381,87182.0,87181.0,0.01835652]
[1765978014868,2.39581,87182.0,87181.0,0.01835652]
[1765978016416,2.39581,87182.0,87167.0,0.04966]
[1765978016417,0.2907,87179.0,87167.0,0.04966]
[1765978016619,0.04293,87181.0,87166.0,0.02598]
[1765978016620,0.2907,87177.0,87166.0,0.02598]
[1765978016774,0.33343,87177.0,87166.0,0.02598]
[1765978017187,0.02598,87176.0,87167.0,0.04966]
[1765978017880,0.20222587,87183.0,87167.0,0.05127287]
[1765978018079,2.0,87183.0,87182.0,0.01835652]
[1765978018741,2.03449257,87183.0,87182.0,0.01835652]
[1765978019374,2.03549257,87183.0,87182.0,0.01835652]
[1765978019923,2.32619257,87183.0,87182.0,0.01835652]
[1765978020509,2.32719257,87183.0,87182.0,0.01835652]
[1765978026115,2.32859257,87183.0,87182.0,0.01835652]
[1765978031585,2.32859257,87183.0,87182.0,0.10241652]
[1765978032172,0.03789257,87183.0,87182.0,0.10241652]
[1765978032607,0.03689257,87183.0,87182.0,0.10402939]
[1765978032804,0.03689257,87183.0,87182.0,0.16135966]
[1765978033027,0.03689257,87183.0,87182.0,0.10402939]
[1765978033685,0.03589257,87183.0,87182.0,0.10402939]
[1765978033883,0.03689257,87183.0,87182.0,0.10402939]
[1765978034103,0.03789257,87183.0,87182.0,0.33343454]
[1765978034303,0.03689257,87183.0,87182.0,0.10402939]
[1765978034747,0.03449257,87183.0,87182.0,0.10402939]
[1765978034871,0.03449257,87183.0,87182.0,0.01996939]
[1765978035067,0.03449257,87183.0,87169.0,0.01147196]
[1765978035273,0.03449257,87183.0,87182.0,0.01835652]
[1765978035731,2.03449257,87183.0,87182.0,0.01835652]
[1765978036650,2.0,87182.0,87172.0,0.00161287]
[1765978036814,2.0,87182.0,87181.0,0.01835652]
[1765978038528,2.2907,87182.0,87181.0,0.01835652]
[1765978038971,2.0,87180.0,87169.0,0.02664]
[1765978039319,2.2907,87181.0,87180.0,0.01835652]
[1765978040111,2.0,87180.0,87167.0,0.04923]
[1765978040320,2.2907,87180.0,87179.0,0.01835652]
[1765978041477,2.0,87179.0,87169.0,0.02664]
[1765978041814,2.0,87179.0,87178.0,0.01835652]
[1765978042803,0.2907,87180.0,87179.0,0.03483]
[1765978043007,0.2907,87180.0,87179.0,0.08406]
[1765978043183,0.2907,87180.0,87178.0,0.01835652]
[1765978043408,0.03449015,87179.0,87178.0,0.01835652]
[1765978048541,0.03449015,87179.0,87178.0,0.10241652]
[1765978051433,0.03449015,87179.0,87178.0,0.10402939]
[1765978053195,0.03449015,87179.0,87178.0,0.01996939]
[1765978054381,2.03449015,87179.0,87163.0,0.13339041]
[1765978054573,2.0,87177.0,87163.0,0.01835652]
[1765978054776,0.2907,87177.0,87176.0,0.10659]
[1765978054978,0.2907,87177.0,87176.0,0.02518]
[1765978055327,0.2907,87177.0,87173.0,0.04986]
[1765978055721,0.03449015,87179.0,87174.0,0.04986]
[1765978056100,0.03549015,87179.0,87178.0,0.09976652]
[1765978056226,0.03549015,87179.0,87178.0,0.01835652]
[1765978056423,0.03449015,87179.0,87178.0,0.01835652]
[1765978056667,0.03449015,87179.0,87178.0,0.07568679]
[1765978056840,0.03549015,87179.0,87178.0,0.12554679]
[1765978057024,0.03549015,87179.0,87178.0,0.07568679]
[1765978057223,0.03449015,87179.0,87178.0,0.07568679]
[1765978058569,0.03449015,87179.0,87178.0,0.01835652]
[1765978060847,1.98974,87189.0,87184.0,0.02518]
[1765978061186,1.98974,87192.0,87184.0,0.02518]
[1765978061829,1.98974,87190.0,87184.0,0.02518]
[1765978062460,0.0524858,87191.0,87184.0,0.02518]
[1765978062461,1.98974,87188.0,87184.0,0.02518]
[1765978062858,2.28044,87185.0,87184.0,0.02518]
[1765978063276,2.3149292,87185.0,87184.0,0.02518]
[1765978064191,2.3169292,87185.0,87184.0,0.02518]
[1765978066968,0.0364892,87185.0,87184.0,0.02518]
[1765978068020,0.0354892,87185.0,87184.0,0.02518]
[1765978068963,0.0344892,87185.0,87178.0,0.04353652]
[1765978073046,0.0344892,87185.0,87178.0,0.01835652]
[1765978074702,0.2907,87183.0,87178.0,0.01835652]
[1765978075108,0.33864,87183.0,87178.0,0.01835652]
[1765978075843,0.33864,87183.0,87165.0,0.02690105]
[1765978075844,0.02521,87179.0,87165.0,0.02690105]
[1765978076015,0.2907,87172.0,87165.0,0.00172105]
[1765978076363,0.3821071,87175.0,87165.0,0.00172105]
[1765978076364,0.2907,87168.0,87165.0,0.00172105]
[1765978076542,0.2907,87168.0,87165.0,0.00010818]
[1765978077300,0.03449328,87171.0,87165.0,0.00010818]
[1765978077510,2.0,87168.0,87165.0,0.00010818]
[1765978077744,0.04794,87167.0,87165.0,0.00010818]
[1765978078404,0.03449407,87166.0,87165.0,0.00010818]
[1765978078753,0.40680407,87166.0,87165.0,0.00010818]
[1765978078990,0.40680407,87166.0,87161.0,0.01835652]
[1765978078991,0.02521,87162.0,87161.0,0.01835652]
[1765978079193,0.02521,87162.0,87146.0,0.01835652]
[1765978079194,0.02521,87147.0,87146.0,0.01835652]
[1765978079581,0.05888,87147.0,87146.0,0.01835652]
[1765978079758,0.05888,87147.0,87129.0,0.01835652]
[1765978079759,0.2907,87146.0,87129.0,0.01835652]
[1765978079980,2.0,87138.0,87129.0,0.01839977]
[1765978080182,0.10682,87130.0,87129.0,0.01839977]
[1765978080440,2.10682,87130.0,87129.0,0.01839977]
[1765978080846,2.1413305,87130.0,87129.0,0.01839977]
[1765978081267,2.0933905,87130.0,87129.0,0.01839977]
[1765978082128,0.0345105,87130.0,87129.0,0.02001264]
[1765978083029,0.0345105,87130.0,87129.0,0.07734291]
[1765978083235,0.2907,87159.0,87137.0,0.24099816]
[1765978083468,2.0,87159.0,87157.0,0.01835652]
[1765978083675,0.02909342,87160.0,87157.0,0.01835652]
[1765978083869,2.0,87169.0,87158.0,0.05733027]
[1765978084004,0.2907,87168.0,87158.0,0.05894314]
[1765978084203,0.32519665,87168.0,87158.0,0.11664676]
[1765978084387,0.32519665,87168.0,87159.0,0.01147328]
[1765978084602,0.32530958,87168.0,87162.0,0.05733027]
[1765978085082,0.03460958,87168.0,87165.0,0.01147249]
[1765978085234,0.03460958,87168.0,87167.0,0.05733027]
[1765978085421,0.03460958,87168.0,87167.0,0.05894314]
[1765978085422,0.03560958,87168.0,87167.0,0.05894314]
[1765978086380,0.03460958,87168.0,87167.0,0.05894314]
[1765978087293,0.34183262,87180.0,87170.0,0.11503389]
[1765978087467,0.34190606,87180.0,87179.0,0.01835652]
[1765978087670,7.344e-05,87180.0,87179.0,0.01835652]
[1765978088341,0.03456482,87180.0,87179.0,0.01835652]
[1765978088566,0.03556482,87180.0,87179.0,0.01835652]
[1765978089240,0.03456482,87180.0,87179.0,0.01835652]
[1765978089416,0.03556482,87180.0,87179.0,0.01835652]
[1765978090227,0.12086482,87180.0,87179.0,0.01835652]
[1765978090378,0.41156482,87180.0,87179.0,0.01835652]
[1765978091259,0.35977482,87180.0,87179.0,0.01835652]
[1765978091433,0.32626482,87180.0,87179.0,0.01835652]
[1765978091826,0.41156482,87180.0,87179.0,0.00435652]
[1765978092261,0.32626482,87180.0,87179.0,0.23376956]
[1765978092558,0.32626482,87180.0,87179.0,0.11939041]
[1765978092978,0.35977482,87180.0,87179.0,0.11939041]
[1765978093219,0.41156482,87180.0,87179.0,0.11939041]
[1765978093976,0.32626482,87180.0,87179.0,0.11939041]
[1765978094193,0.41156482,87180.0,87179.0,0.12039041]
[1765978094425,0.41056482,87180.0,87179.0,0.12039041]
[1765978094776,0.41056482,87180.0,87179.0,0.12139041]
[1765978094972,0.32526482,87180.0,87179.0,0.12139041]
[1765978095290,0.41056482,87180.0,87179.0,0.12039041]
[1765978095814,0.41056482,87180.0,87179.0,0.12139041]
[1765978096354,0.03456482,87180.0,87179.0,0.35241632]
[1765978096965,7.344e-05,87180.0,87179.0,0.35241632]
[1765978098111,7.344e-05,87180.0,87179.0,0.40243471]
[1765978098886,0.09294893,87200.0,87199.0,0.11503389]
[1765978099118,0.09332558,87200.0,87199.0,0.11503389]
[1765978099955,0.05981558,87200.0,87199.0,0.34600718]
[1765978100136,0.02533665,87200.0,87199.0,0.34600718]
[1765978100832,0.00037665,87200.0,87199.0,0.34600718]
[1765978102214,0.00037665,87200.0,87199.0,0.11664676]
[1765978102720,0.00037665,87200.0,87199.0,0.34600718]
[1765978102938,0.00037665,87200.0,87199.0,0.34900718]
[1765978103340,0.00037665,87200.0,87199.0,0.34600718]
[1765978103663,0.00037665,87200.0,87199.0,0.34800718]
[1765978104508,0.00037665,87200.0,87199.0,0.23397329]
[1765978104839,0.00037665,87200.0,87199.0,0.23297329]
[1765978105045,0.00037665,87200.0,87199.0,0.28299168]
[1765978105251,0.00037665,87200.0,87199.0,0.34232195]
[1765978105861,0.00037665,87200.0,87199.0,0.34032195]
[1765978106538,0.00037665,87200.0,87199.0,0.34332195]
[1765978107356,0.00037665,87200.0,87199.0,0.28599168]
[1765978107568,0.00037665,87200.0,87199.0,0.34332195]
[1765978108417,0.2907,87223.0,87212.0,0.01146631]
[1765978108621,0.2907,87223.0,87209.0,0.06879697]
[1765978108622,0.03447033,87219.0,87211.0,0.01146644]
[1765978108822,0.03447033,87219.0,87218.0,0.02294117]
[1765978110207,0.03447033,87219.0,87218.0,0.02394117]
[1765978113219,0.32517033,87219.0,87218.0,0.02394117]
[1765978113830,0.2907,87219.0,87218.0,0.02394117]
[1765978116093,0.32779,87219.0,87218.0,0.02394117]
[1765978116554,0.32835579,87219.0,87218.0,0.13897506]
[1765978117054,0.00056579,87219.0,87218.0,0.13897506]
[1765978117261,0.03765579,87219.0,87218.0,0.02394117]
[1765978117432,0.08942579,87219.0,87218.0,0.01101117]
[1765978117819,0.03765579,87219.0,87218.0,0.01101117]
[1765978118227,0.00056579,87219.0,87218.0,0.01101117]
[1765978119041,0.00056579,87219.0,87218.0,0.12604506]
[1765978119246,0.00056579,87219.0,87218.0,0.16000506]
[1765978119475,0.00056579,87219.0,87218.0,0.12604506]
[1765978120786,0.00056579,87219.0,87218.0,0.39092839]
[1765978120990,0.00056579,87219.0,87218.0,0.49150678]
[1765978122134,0.00056579,87219.0,87218.0,0.49250678]
[1765978122330,0.00056579,87219.0,87218.0,0.49150678]
[1765978122532,0.00056579,87219.0,87218.0,0.49050678]
[1765978122934,0.00056579,87219.0,87218.0,0.49150678]
[1765978123282,0.00056579,87219.0,87218.0,0.49050678]
[1765978123736,0.00056579,87219.0,87218.0,0.49450678]
[1765978123886,0.00056579,87219.0,87218.0,0.49850678]
[1765978124527,0.00056579,87219.0,87218.0,0.49450678]
[1765978124687,0.00056579,87219.0,87218.0,0.49950678]
[1765978125418,0.00056579,87219.0,87218.0,0.49550678]
[1765978125840,0.00056579,87219.0,87218.0,0.50050678]
[1765978130702,0.00056579,87219.0,87218.0,0.44994678]
[1765978131044,0.03027,87242.0,87241.0,0.12649639]
[1765978131249,0.03027,87242.0,87241.0,0.14255099]
[1765978131904,0.03027,87242.0,87241.0,0.37180099]
[1765978132570,0.03027,87242.0,87241.0,0.37280099]
[1765978133101,0.06536,87242.0,87241.0,0.2577671]
[1765978133300,0.06536,87242.0,87241.0,0.0285171]
[1765978133507,0.06536,87242.0,87241.0,0.0295171]
[1765978133872,0.06536,87242.0,87241.0,0.37380099]
[1765978134261,0.06536,87242.0,87241.0,0.14455099]
[1765978136250,0.06536,87242.0,87241.0,0.0295171]
[1765978136456,0.06536,87242.0,87241.0,0.0285171]
[1765978136676,0.06536,87242.0,87241.0,0.0295171]
[1765978136853,0.06536,87242.0,87241.0,0.0285171]
[1765978137056,0.06536,87242.0,87241.0,0.14355099]
[1765978137475,0.06536,87242.0,87241.0,0.14455099]
[1765978137922,0.06536,87242.0,87241.0,0.14355099]
[1765978138128,0.06536,87242.0,87241.0,0.14255099]
[1765978138782,0.06536,87242.0,87241.0,0.0275171]
[1765978140871,2.35606,87242.0,87241.0,0.0275171]
[1765978141068,2.59049478,87242.0,87241.0,0.0275171]
[1765978141237,2.36124738,87242.0,87241.0,0.0275171]
[1765978141437,2.35606,87242.0,87241.0,0.0275171]
[1765978141631,2.35678266,87242.0,87241.0,0.0275171]
[1765978143083,2.35778266,87242.0,87241.0,0.0275171]
[1765978143645,2.35778266,87242.0,87225.0,0.11503389]
[1765978143646,0.0655,87219.0,87218.0,0.01001117]
[1765978144186,0.0655,87219.0,87218.0,0.12504506]
[1765978144717,0.0655,87219.0,87218.0,0.01001117]
[1765978145107,0.0655,87219.0,87218.0,0.01201117]
[1765978145969,0.0655,87219.0,87218.0,0.01001117]
[1765978146370,0.0655,87219.0,87218.0,0.01101117]
[1765978146769,0.0655,87219.0,87218.0,0.01301117]
[1765978146945,0.00652,87226.0,87218.0,0.01462404]
[1765978147150,2.36118,87226.0,87225.0,0.11503389]
[1765978149508,0.03155,87219.0,87218.0,0.12665793]
[1765978150711,0.03155,87219.0,87218.0,0.12765793]
[1765978151093,0.06266,87219.0,87218.0,0.01362404]
[1765978151292,0.06266,87219.0,87218.0,0.12865793]
[1765978152835,0.03155,87219.0,87218.0,0.12865793]
[1765978153286,0.03155,87219.0,87218.0,0.35796839]
[1765978153506,0.03155,87219.0,87218.0,0.12865793]
[1765978154032,0.03155,87219.0,87218.0,0.35796839]
[1765978154830,0.29722,87226.0,87221.0,0.05733027]
[1765978155051,0.29722,87226.0,87225.0,0.11503389]
[1765978155659,0.32748,87226.0,87225.0,0.11503389]
[1765978156452,0.03004,87222.0,87221.0,0.11664676]
[1765978157112,0.05987,87222.0,87221.0,0.00161287]
[1765978157362,0.05987,87222.0,87221.0,0.11664676]
[1765978157708,0.29722,87226.0,87223.0,0.11503389]
[1765978157916,0.32684,87226.0,87223.0,0.11503389]
[1765978158321,0.05924,87224.0,87223.0,0.11503389]
[1765978159820,0.0584,87222.0,87221.0,0.00161287]
[1765978160320,0.0292,87222.0,87221.0,0.00161287]
[1765978161995,0.29722,87226.0,87221.0,0.00261287]
[1765978162288,0.29722,87226.0,87223.0,0.01146486]
[1765978162619,0.2907,87226.0,87224.0,0.34432623]
[1765978163045,0.2907,87226.0,87224.0,0.3459391]
[1765978163259,0.2907,87226.0,87225.0,0.31863206]
[1765978163524,0.2907,87226.0,87225.0,0.43527882]
[1765978163736,0.2907,87226.0,87225.0,0.38277882]
[1765978163954,0.2907,87226.0,87225.0,0.11664676]
[1765978164158,0.31906,87226.0,87225.0,0.00161287]
[1765978164382,0.34742,87226.0,87225.0,0.00161287]
[1765978164553,0.31906,87226.0,87225.0,0.00161287]
[1765978164972,0.2907,87226.0,87225.0,0.00161287]
[1765978165397,0.2907,87226.0,87225.0,0.00261287]
[1765978165943,0.2907,87226.0,87225.0,0.00361287]
[1765978174241,0.2907,87226.0,87225.0,0.2902352]
[1765978174449,0.2907,87226.0,87225.0,0.06094314]
[1765978175046,0.2907,87226.0,87225.0,0.00361287]
[1765978176805,0.2907,87226.0,87225.0,0.06094314]
[1765978177011,0.2907,87226.0,87225.0,0.00361287]
[1765978177438,0.2907,87226.0,87225.0,0.06094314]
[1765978177662,0.3419,87226.0,87225.0,0.002]
[1765978177888,0.37636982,87226.0,87225.0,0.002]
[1765978178553,0.37636982,87226.0,87225.0,0.001]
[1765978178968,0.37636982,87226.0,87225.0,0.002]
[1765978179166,0.0253,87219.0,87218.0,0.01001117]
[1765978179336,0.0506,87219.0,87218.0,0.01001117]
[1765978180015,0.08507307,87219.0,87218.0,0.01001117]
[1765978180932,0.08507307,87219.0,87218.0,0.01101117]
[1765978181266,0.08507307,87219.0,87218.0,0.01201117]
[1765978181466,0.08507307,87219.0,87218.0,0.01101117]
[1765978181919,0.08507307,87219.0,87218.0,0.01201117]
[1765978182504,0.08507307,87219.0,87218.0,0.01301117]
[1765978183875,0.09637361,87219.0,87218.0,0.01301117]
[1765978184255,0.08507307,87219.0,87218.0,0.01301117]
[1765978184455,0.40387415,87219.0,87218.0,0.01301117]
[1765978185921,0.41537991,87219.0,87218.0,0.01301117]
[1765978186522,0.40387415,87219.0,87218.0,0.01301117]
[1765978188042,0.37857415,87219.0,87218.0,0.01301117]
[1765978188373,0.40209415,87219.0,87218.0,0.01301117]
[1765978189471,0.32517307,87219.0,87218.0,0.32952163]
[1765978189673,0.32517307,87219.0,87218.0,0.3311345]
[1765978190082,0.2907,87219.0,87218.0,0.3311345]
[1765978190382,0.2907,87219.0,87218.0,0.38846477]
[1765978191986,0.03446986,87222.0,87221.0,0.37383284]
[1765978192211,0.03446986,87222.0,87221.0,0.37544571]
[1765978192392,0.00025139,87227.0,87226.0,0.34134943]
[1765978192588,0.00025139,87227.0,87226.0,0.40029257]
[1765978195166,0.00025139,87227.0,87226.0,0.40429257]
[1765978199059,0.00025139,87227.0,87226.0,0.3469623]
[1765978199265,0.00025139,87227.0,87226.0,0.45431096]
[1765978201285,0.00025139,87227.0,87226.0,0.37479619]
[1765978201626,0.00025139,87227.0,87226.0,0.00561287]
[1765978201899,0.02109139,87227.0,87226.0,0.00561287]
[1765978202354,0.02109139,87227.0,87226.0,0.00361287]
[1765978202602,0.04193139,87227.0,87226.0,0.00161287]
[1765978202809,0.02109139,87227.0,87226.0,0.00261287]
[1765978203128,0.02090139,87227.0,87226.0,0.00161287]
[1765978203325,0.02090139,87227.0,87218.0,0.02147669]
[1765978203566,0.31160139,87227.0,87226.0,0.001]
[1765978203764,0.02065,87232.0,87226.0,0.001]
[1765978204178,0.02065,87232.0,87226.0,0.002]
[1765978204377,0.02065,87232.0,87226.0,0.001]
[1765978204762,0.00457,87227.0,87226.0,0.001]
[1765978205163,0.00457,87227.0,87226.0,0.002]
[1765978205362,0.00457,87227.0,87226.0,0.001]
[1765978205688,0.00457,87227.0,87220.0,0.01146526]